Workbook

Sheet Vypocet
A1: 1
B3: NÁVRH POTŘEBNÉHO OBJEMU RETENČNÍ NÁDRŽE (RN) DLE ČSN 75 9010
B4: Akce: | D4: Doplňte název akce
B5: Vypracoval: | D5: Doplňte příjmení jméno, firmu
L7: Datum zpracování: | M7: =TODAY() -> 2017-01-30
L8: Výpočtový program: | M8: ASIO NEW RN V3.3
A9: 1. | B9: Návrh typu RN | I9: AS-NIDAPLAST | L9: AS-KRECHT
B10: Výrobek: | I10: L / B / H 2.4 / 1.2 / 0.52 m | L10: L / B / H 2.3 / 1.3 / 0.8 m
B12: Délka L: | E12: 14.4 | F12: m
B13: Šířka B: | E13: 14.4 | F13: m
B14: Výška H: | E14: 2.08 | F14: m
B15: Plocha vsaku Avsak = L * (H / 2 + B): | E15: =E12*(E14/2+E13) -> 222.336 | F15: m2 | I15: AS-NIDAFLOW
I16: L / B / H 2.4 / 1.2 / 0.52 m
A17: 2. | B17: Stanovení vsaku
B18: Koeficient vsaku Kv: | E18: 0 | F18: m/s | G18: kv nutno zadat dle HGP, pouze pro orientaci necháváme součinitel infiltrace
B19: Součinitel bezpečnosti vsaku f: | E19: 2 | G19: =IF(E18<=0.000001,IF(E18>0,"Pozor, nízký koeficient vsaku, zemina není vhodná pro vsak.",""),"") -> 
B21: Vsakový odtok Qvsak = 1 / f * kv * Avsak: | C21: 160 | E21: =1/E19*E18*E15*1000 -> 0 | F21: l/s
C22: 320
A24: 3. | B24: Povolený odtok do kanalizace
B25: Povolený odtok do kanalizace Qo(Qe**): | E25: 0 | F25: l/s | G25: stanoví správce toku, provozovatel kanalizace nebo příslušný úřad
A28: 4. | B28: Stanovení povrchového odtoku
B29: Oblast:
B30: Periodicita: | H30: Komentář
B32: Typ plochy -> součinitel odtoku φ | F32: Odtok. souč. φ | G32: Odvodňovaná plocha S [m] | I32: S [ha] | K32: Redukovaná plocha Sr = S * φ | M32: Sr [m2]
F33: 1 | G33: 10000 | I33: =G33/10000 -> 1 | K33: =G33*F33 -> 10000 | M33: =F33*G33 -> 10000
F34: 1 | G34: 0 | I34: =G34/10000 -> 0 | K34: =G34*F34 -> 0 | M34: =F34*G34 -> 0
F35: 1 | G35: 0 | I35: =G35/10000 -> 0 | K35: =G35*F35 -> 0 | M35: =F35*G35 -> 0
F36: 1 | G36: 0 | I36: =G36/10000 -> 0 | K36: =G36*F36 -> 0 | M36: =F36*G36 -> 0
F37: 1 | G37: 0 | I37: =G37/10000 -> 0 | K37: =G37*F37 -> 0 | M37: =F37*G37 -> 0
B38: Celkem | K38: =SUM(K33:L37) -> 10000 | M38: =SUM(M33:N37) -> 10000
B39: Výpočet potřebného retenčního objemu zasakovacího systému pro úhrny srážek dle návrhu normy ČSN 75 9010 | S39: =F41/60 -> 0.08333333333 | T39: 0.1666666667 | U39: 0.25 | V39: 0.3333333333 | W39: 0.5 | X39: 0.6666666667 | Y39: 1 | Z39: 2
Q40: =HLOOKUP(MAX(S40:Z40,0),S40:AA41,2,FALSE) -> 120 | R40: =MAX(S40:Z40,0) -> 338.3593216 | S40: =F45 -> 97.112192 | T40: 138.001536 | U40: 168.668544 | V40: 189.113216 | W40: 217.7357568 | X40: 244.3138304 | Y40: 267.8252032 | Z40: 338.3593216
B41: Doba trvání deště Tc | E41: min | F41: 5 | G41: 10 | H41: 15 | I41: 20 | J41: 30 | K41: 40 | L41: 60 | M41: 120 | S41: 5 | T41: 10 | U41: 15 | V41: 20 | W41: 30 | X41: 40 | Y41: 60 | Z41: 120
B42: Návrhové úhrny srážek | E42: mm | F42: 9.5 | G42: 13.5 | H42: 16.5 | I42: 18.5 | J42: 21.3 | K42: 23.9 | L42: 26.2 | M42: 33.1
B43: Povrchový odtok Qd (Qc**) | E43: l/s | F43: =$M$38*F42/F41/60 -> 316.6666667 | G43: =$M$38*G42/G41/60 -> 225 | H43: 183.3333333 | I43: 154.1666667 | J43: 118.3333333 | K43: 99.58333333 | L43: 72.77777778 | M43: =$M$38*M42/M41/60 -> 45.97222222
B44: Retenční odtok Qr = Qd(c) - Qo - Qv | E44: l/s | F44: =MAX(F43-$E$25-$E$21,0) -> 316.6666667 | G44: 225 | H44: 183.3333333 | I44: 154.1666667 | J44: 118.3333333 | K44: 99.58333333 | L44: 72.77777778 | M44: =MAX(M43-$E$25-$E$21,0) -> 45.97222222
B45: Retenční objem V = Vd - Qvsak * Tc | E45: m3 | F45: =IF(F42/1000*($M$38+$E$15)-($E$21+$E$25)/1000*F41*60<0,0,F42/1000*($M$38+$E$15)-($E$21+$E$25)/1000*F41*60) -> 97.112192 | G45: =IF(G42/1000*($M$38+$E$15)-($E$21+$E$25)/1000*G41*60<0,0,G42/1000*($M$38+$E$15)-($E$21+$E$25)/1000*G41*60) -> 138.001536 | H45: 168.668544 | I45: 189.113216 | J45: 217.7357568 | K45: 244.3138304 | L45: 267.8252032 | M45: 338.3593216 | N45: 0
B46: Doba trvání deště Tc | E46: hod | F46: 4 | G46: 6 | H46: 8 | I46: 10 | J46: 12 | K46: 18 | L46: 24 | M46: 48 | N46: 72
B47: Návrhové úhrny srážek | E47: mm | F47: 37.1 | G47: 38.7 | H47: 39.4 | I47: 40.1 | J47: 40.7 | K47: 42.7 | L47: 44.2 | M47: 53.9 | N47: 60.2
B48: Povrchový odtok Qd (Qc**) | E48: l/s | F48: =$M$38*F47/F46/3600 -> 25.76388889 | G48: 17.91666667 | H48: 13.68055556 | I48: 11.13888889 | J48: 9.421296296 | K48: 6.589506173 | L48: 5.115740741 | M48: 3.119212963 | N48: 2.322530864
B49: Retenční odtok Qr = Qd(c) - Qo - Qv | E49: l/s | F49: =MAX(F48-$E$25-$E$21,0) -> 25.76388889 | G49: 17.91666667 | H49: 13.68055556 | I49: 11.13888889 | J49: 9.421296296 | K49: 6.589506173 | L49: 5.115740741 | M49: 3.119212963 | N49: 2.322530864
B50: Retenční objem V = Vd - Qvsak * Tc | E50: m3 | F50: =IF(F47/1000*($M$38+$E$15)-($E$21+$E$25)/1000*F46*3600<0,0,F47/1000*($M$38+$E$15)-($E$21+$E$25)/1000*F46*3600) -> 379.2486656 | G50: =IF(G47/1000*($M$38+$E$15)-($E$21+$E$25)/1000*G46*3600<0,0,G47/1000*($M$38+$E$15)-($E$21+$E$25)/1000*G46*3600) -> 395.6044032 | H50: 402.7600384 | I50: 409.9156736 | J50: 416.0490752 | K50: 436.4937472 | L50: 451.8272512 | M50: 550.9839104 | N50: =IF(N47/1000*($M$38+$E$15)-($E$21+$E$25)/1000*N46*3600<0,0,N47/1000*($M$38+$E$15)-($E$21+$E$25)/1000*N46*3600) -> 615.3846272
S51: =HLOOKUP(MAX(S39:AA39,0),S39:AA41,2,FALSE) -> 338.3593216 | T51: =IF(S51=F41,1,IF(S51=G41,2,IF(S51=H41,3,IF(S51=I41,4,IF(S51=J41,5,IF(S51=K41,6,IF(S51=L41,7,IF(S51=M41,8,9)))))))) -> 9
E52: Červené hodnoty uvedené v tabulce jsou zobrazeny v grafu | Q52: =HLOOKUP(MAX(S52:AA52),S52:AA53,2,FALSE) -> 72 | R52: =MAX(S52:AA52,0) -> 615.3846272 | S52: =F50 -> 379.2486656 | T52: 395.6044032 | U52: 402.7600384 | V52: 409.9156736 | W52: 416.0490752 | X52: 436.4937472 | Y52: 451.8272512 | Z52: 550.9839104 | AA52: 615.3846272
S53: =F46 -> 4 | T53: 6 | U53: 8 | V53: 10 | W53: 12 | X53: 18 | Y53: 24 | Z53: 48 | AA53: 72
A54: 5. | B54: Stanovení retenčního objemu | S54: =IF(R40>R52,Q40,Q52) -> 72 | T54: =IF(S54=F41,1,IF(S54=G41,2,IF(S54=H41,3,IF(S54=I41,4,IF(S54=J41,5,IF(S54=K41,6,IF(S54=L41,7,IF(S54=M41,8,0)))))))) -> 0 | U54: =IF(S54=F46,9,IF(S54=G46,10,IF(S54=H46,11,IF(S54=I46,12,IF(S54=J46,13,IF(S54=K46,14,IF(S54=L46,15,IF(S54=M46,16,17)))))))) -> 17 | V54: =IF(T54>0,T54,U54) -> 17
B55: Vypočteno pro Tc: | E55: 20
B56: Retenční objem V: | E56: =IF(Data!Q1<9,(INDEX(F45:N45,1,Data!Q1)),(INDEX(F50:N50,1,(Data!Q1)-8))) -> 395.6044032 | F56: m3
B57: Doba prázdění RN: | E57: =IF(E25+E21>0,E56/(E25+E21)*1000/3600,0) -> 0 | F57: hod | G57: =IF(E57>72,"Pozor, doba prázdnění je delší než 72 h, nepřípustné.","") -> 
A59: 6. | B59: Posouzení výrobku | E59: 1.3
B61: Výrobek: | E61: AS-NIDAPLAST
B62: Skladební délka: | E62: 14.4 | F62: m
B63: Skladební šířka: | E63: 14.4 | F63: m
B64: Skladební výška: | E64: 2.08 | F64: m
B65: Výška plnění: | E65: 1.984127022 | F65: m
B66: Využití: | E66: 95.39072222 | F66: %
B67: Počet bloků: | E67: 288 | F67: ks
J69: Aktivní pouze pro AS-NIDAFLOW
B71: =IF(E66<80,"*Optimalizujte využití RN, pomocí tlačítek < > můžete změnit výšku, šířku a délku RN.","") -> 
B72: **Platí pro návrh AS-NIDAFLOW
B74: www.asio.cz | K74: ASIO NEW, spol. s r. o.
B75: asio@asio.cz | K75: Kšírova 552/45, 619 00 Brno
M76: Tel.: 548 428 111

Sheet Mapa stanic

Sheet Prospekt Nidaplast + Krecht

Sheet Napoveda
B2: Nápověda k programu ASIO RN V2.2, který Vám pomůže zvolit velikost AS-NIDAPLAST / AS-KRECHT
B3: Program se skládá ze šesti částí. Obecně lze říci, že žluté pole je možno doplňovat či přepisovat a modré pole jsou automaticky dopočítána.
B4: 1) | C4: První část slouží k výběru typu retenční nádrže. Vpravo od výběrového pole jsou vidět jednotlivé prvky a jejich rozměry. Na základě zvoleného druhu vyberte výrobek z rozbalovacího menu.
B5: 2) | C5: Jestliže chcete část nebo celý objem RN vsakovat, zvolte v druhé části typ zeminy. Jinak zvolte pole "bez vsaku".
B6: 3) | C6: Vpřípadě, že počítáte s omezeným vypouštěním do kanalizace doplňte ve třetí části maximální odtok.
B7: 4) | C7: Ve čtvrté části vyberte oblast a periodicitu z rozbalovacích seznamů. Pak typ odvodňované plochy (do žluté buňky se součinitel odtoku doplní automaticky, v případě potřeby zadání jiné hodnoty jej můžete přepsat) a její velikost v ha. Následuje tabulka výpočtu retenčního objemu bude již vyplněny podle oblasti a periodicity.
B8: 5) | C8: Potřebný retenční objem a čas prázdnění RN se v páté části dohledá po zmáčknutí tlačítka "najdi max V".
B9: 6) | C9: Šestá část slouží pro upřesnění rozměrů RN. V prvním kroku zvolte požadovanou výšku RN a v dalších krocích můžete optimalizovat půdorysnou plochu.
B10: K novému výpočtu je třeba stisknout tlačítko "Nový výpočet".
B11: POZOR! Pro správnou funkci výpočtového programu je nutné povolit makra, v opačném případě nebude výpočet fungovat.

Sheet Data (hidden)
B1: 1 Brno | C1: 1 | E1: 0.2 | F1: 1 | G1: šikmá střecha / kov, sklo, břidlice, eternit (1,0) | H1: 1 | I1: 1 | J1: bez vsaku | K1: 0 | L1: 1 | M1: AS-NIDAPLAST | N1: 0.95 | O1: 1 | P1: 5 min | Q1: 10 | R1: TRUE
B2: 2 Bruntál | E2: 0.1 | G2: šikmá střecha / tašky, lepenka (1,0) | H2: 1 | I2: 1 | J2: štěrk hrubý (1.10-2) | K2: 0.01 | M2: AS-KRECHT | N2: 1 | O2: =IF(O1=1,"1",IF(O1=2,"2","1")) -> 1 | P2: 10 min
B3: 3 Polička | G3: plochá střecha / kov, sklo, eternit (1,0) | H3: 1 | I3: 1 | J3: štěrk střední (1.10-3) | K3: 0.001 | M3: AS-NIDAFLOW | P3: 15 min
B4: 4 Kamýk nad Vltavou | G4: plochá střecha / lepenka (0,9) | H4: 0.9 | I4: 1 | J4: štěrk jemný (1.10-4) | K4: 0.0001 | M4: Drenáž pod bloky | N4: 2 | P4: 20 min
B5: 5 Klášterní Hradisko | G5: plochá střecha / štěrk (0,7) | H5: 0.7 | I5: 1 | J5: štěrkopísek (1.10-4) | K5: 0.0001 | M5: Drenáž mezi bloky | P5: 30 min
B6: 6 Mariánské Lázně | G6: zatravněná střecha / ornice 10cm (0,5) | H6: 0.5 | J6: písek hrubý (1.10-4) | K6: 0.0001 | P6: 40 min
B7: 7 Mšeno | G7: zatravněná střecha, sklon do 15° / ornice 10cm (0,3) | H7: 0.3 | J7: písek střední (5.10-5) | K7: 5e-05 | P7: 60 min
B8: 8 Ostrava – Vítkovice | G8: zpevněné plochy, cesty / asfalt, bezesparý beton (0,9) | H8: 0.9 | J8: písek jemný (1.10-5) | K8: 1e-05 | P8: 120 min
B9: 9 Petrovice | G9: zpevněné plochy, cesty / dlažba s těsnými spárami (0,75) | H9: 0.75 | J9: zahlíněný písek (5.10-6) | K9: 5e-06 | P9: 4 hod
B10: 10 Pěčín | G10: zpevněné plochy, cesty / zpevněný štěrk (0,6) | H10: 0.6 | J10: písčitá hlína (1.10-6) | K10: 1e-06 | P10: 6 hod
B11: 11 Plzeň – Doudlevce | G11: zpevněné plochy, cesty / dlažba s otevřenými spárami (0,5) | H11: 0.5 | J11: jílovitý písek (1.10-6) | K11: 1e-06 | P11: 8 hod
B12: 12 Praha – Hostivař | G12: zpevněné plochy, cesty / volný stěrk, zatrávněný štěrk (0,3) | H12: 0.3 | J12: spraš (5.10-7) | K12: 5e-07 | P12: 10 hod
B13: 13 Seč | G13: zpevněné plochy, cesty / zasakovací dlaždice (0,25) | H13: 0.25 | J13: hlína (1.10-7) | K13: 1e-07 | P13: 12 hod
B14: 14 Tábor | G14: zpevněné plochy, cesty / zatravňovací dlaždice (0,15) | H14: 0.15 | J14: hlinitý jíl (1.10-9) | K14: 1e-09 | P14: 18 hod
B15: 15 Telč | G15: svahy, příkopy / hlínita půda (0,5) | H15: 0.5 | J15: jíl (1.10-10) | K15: 1e-10 | P15: 24 hod
B16: 16 Bílá Třemešná | G16: svahy, příkopy / písčitá půda (0,3) | H16: 0.3 | P16: 48 hod
B17: 17 Třebíč | G17: zahrady, louky, s odtokem do recipientu / plochá krajina (0,1) | H17: 0.1 | P17: 72 hod
B18: 18 Uherské Hradiště | G18: zahrady, louky, s odtokem do recipientu / strmá krajina (0,3) | H18: 0.3
B19: 19 Vsetín
B20: 20 Vyškov – Brňany
B21: 21 Znojmo
B22: 22 horské lokality

Sheet Data2 (hidden)
A1: Místo | B1: Nadmořská výška | C1: Periodicita p [rok-1] | D1: Doba trvání srážek tc [min] | L1: Doba trvání srážek tc [h]
B2: [m n, m,] | D2: 5 | E2: 10 | F2: 15 | G2: 20 | H2: 30 | I2: 40 | J2: 60 | K2: 120 | L2: 4 | M2: 6 | N2: 8 | O2: 10 | P2: 12 | Q2: 18 | R2: 24 | S2: 48 | T2: 72
D3: Návrhové úhrny srážek hd [mm] | L3: Návrhové úhrny srážek hd [mm]
A4: 1 Brno | B4: 257 | C4: 0.2 | D4: 9.5 | E4: 13.5 | F4: 16.5 | G4: 18.5 | H4: 21.3 | I4: 23.9 | J4: 26.2 | K4: 33.1 | L4: 37.1 | M4: 38.7 | N4: 39.4 | O4: 40.1 | P4: 40.7 | Q4: 42.7 | R4: 44.2 | S4: 53.9 | T4: 60.2
A5: 1 Brno | C5: 0.1 | D5: 11.1 | E5: 15.7 | F5: 19.4 | G5: 21.6 | H5: 25.1 | I5: 28.2 | J5: 31 | K5: 38.9 | L5: 43.8 | M5: 47.3 | N5: 48.6 | O5: 49.3 | P5: 50 | Q5: 52.2 | R5: 53.8 | S5: 63.9 | T5: 70.9
A6: 2 Bruntál | B6: 547 | C6: 0.2 | D6: 9.1 | E6: 13.9 | F6: 16.7 | G6: 18.4 | H6: 20.5 | I6: 22.1 | J6: 24.1 | K6: 27.6 | L6: 33.4 | M6: 38.2 | N6: 38.9 | O6: 39.7 | P6: 40.5 | Q6: 42.9 | R6: 44.3 | S6: 56.7 | T6: 63.3
A7: 2 Bruntál | C7: 0.1 | D7: 10.4 | E7: 16.2 | F7: 19.5 | G7: 21.4 | H7: 24.1 | I7: 25.9 | J7: 28.3 | K7: 32.3 | L7: 39.2 | M7: 42.9 | N7: 43.9 | O7: 44.8 | P7: 45.8 | Q7: 48.6 | R7: 50.6 | S7: 64.6 | T7: 73.2
A8: 3 Polička | B8: 593 | C8: 0.2 | D8: 9.7 | E8: 13.7 | F8: 16 | G8: 17.8 | H8: 20.2 | I8: 21.7 | J8: 24.1 | K8: 28.2 | L8: 34.1 | M8: 39.9 | N8: 41.7 | O8: 42.7 | P8: 43.7 | Q8: 46.8 | R8: 49 | S8: 64.3 | T8: 73.9
A9: 3 Polička | C9: 0.1 | D9: 11.1 | E9: 15.8 | F9: 18.5 | G9: 20.5 | H9: 23.2 | I9: 25.2 | J9: 28 | K9: 32.8 | L9: 39.7 | M9: 46 | N9: 47.3 | O9: 48.6 | P9: 49.9 | Q9: 53.9 | R9: 56.8 | S9: 75.5 | T9: 88.3
A10: 4 Kamýk nad Vltavou | B10: 287 | C10: 0.2 | D10: 11.6 | E10: 16.6 | F10: 19.3 | G10: 20.8 | H10: 23 | I10: 24.7 | J10: 26.8 | K10: 30.5 | L10: 35 | M10: 36.5 | N10: 37.2 | O10: 37.9 | P10: 38.5 | Q10: 40.6 | R10: 41.8 | S10: 52.7 | T10: 58.4
A11: 4 Kamýk nad Vltavou | C11: 0.1 | D11: 13.8 | E11: 20 | F11: 23 | G11: 25 | H11: 27.5 | I11: 29.5 | J11: 32.2 | K11: 36.7 | L11: 42.1 | M11: 45 | N11: 46 | O11: 46.8 | P11: 47.6 | Q11: 49.9 | R11: 51.2 | S11: 63.6 | T11: 69.8
A12: 5 Klášterní Hradisko | B12: 215 | C12: 0.2 | D12: 10 | E12: 15.4 | F12: 18.7 | G12: 20.9 | H12: 23.6 | I12: 25.4 | J12: 27.9 | K12: 31.9 | L12: 33.6 | M12: 34.5 | N12: 35.4 | O12: 36.3 | P12: 37.2 | Q12: 39.9 | R12: 41.3 | S12: 56.1 | T12: 63
A13: 5 Klášterní Hradisko | C13: 0.1 | D13: 11.3 | E13: 18 | F13: 22.1 | G13: 24.6 | H13: 28.1 | I13: 30.5 | J13: 33.3 | K13: 36.5 | L13: 37.5 | M13: 38.6 | N13: 39.7 | O13: 40.7 | P13: 41.8 | Q13: 45 | R13: 46.5 | S13: 64 | T13: 71.9
A14: 6 Mariánské Lázně | B14: 581 | C14: 0.2 | D14: 10.9 | E14: 15.5 | F14: 18.2 | G14: 20.2 | H14: 22.7 | I14: 24.7 | J14: 27.5 | K14: 32 | L14: 34.9 | M14: 36 | N14: 37.1 | O14: 38.2 | P14: 39.3 | Q14: 42.6 | R14: 44.6 | S14: 61.5 | T14: 70.9
A15: 6 Mariánské Lázně | C15: 0.1 | D15: 12.9 | E15: 18.5 | F15: 21.6 | G15: 24 | H15: 27.2 | I15: 29.5 | J15: 32.5 | K15: 38 | L15: 41.4 | M15: 42.7 | N15: 44 | O15: 45.2 | P15: 46.5 | Q15: 50.4 | R15: 52.6 | S15: 73.1 | T15: 83.5
A16: 7 Mšeno | B16: 352 | C16: 0.2 | D16: 10.9 | E16: 14.9 | F16: 17.4 | G16: 19.1 | H16: 21.4 | I16: 23.2 | J16: 25.6 | K16: 29.7 | L16: 33.8 | M16: 36.3 | N16: 38 | O16: 39 | P16: 39.6 | Q16: 41.4 | R16: 42.2 | S16: 52.3 | T16: 56.4
A17: 7 Mšeno | C17: 0.1 | D17: 12.6 | E17: 17.7 | F17: 20.7 | G17: 22.8 | H17: 25.9 | I17: 27.8 | J17: 30.9 | K17: 36 | L17: 41.1 | M17: 44.1 | N17: 46.6 | O17: 47.2 | P17: 47.9 | Q17: 50 | R17: 50.8 | S17: 62.5 | T17: 67.2
A18: 8 Ostrava – Vítkovice | B18: 237 | C18: 0.2 | D18: 10.8 | E18: 15.2 | F18: 17.8 | G18: 19.6 | H18: 22.1 | I18: 23.8 | J18: 26.3 | K18: 30.5 | L18: 36.7 | M18: 40.7 | N18: 41.9 | O18: 43.1 | P18: 44.3 | Q18: 47.9 | R18: 50.1 | S18: 68.7 | T18: 78.9
A19: 8 Ostrava – Vítkovice | C19: 0.1 | D19: 12.3 | E19: 17.4 | F19: 20.6 | G19: 22.8 | H19: 25.9 | I19: 28.1 | J19: 31.3 | K19: 36.6 | L19: 41.9 | M19: 45 | N19: 47.1 | O19: 48.6 | P19: 50.2 | Q19: 54.8 | R19: 58.2 | S19: 80.5 | T19: 95.2
A20: 9 Petrovice | B20: 398 | C20: 0.2 | D20: 11.3 | E20: 17.1 | F20: 19.4 | G20: 21.6 | H20: 23.6 | I20: 25.2 | J20: 27.6 | K20: 31.5 | L20: 37.7 | M20: 43.9 | N20: 47.4 | O20: 48.1 | P20: 48.9 | Q20: 51.2 | R20: 52.8 | S20: 63.9 | T20: 71
A21: 9 Petrovice | C21: 0.1 | D21: 13 | E21: 19.9 | F21: 22.8 | G21: 25 | H21: 27.7 | I21: 30 | J21: 32.7 | K21: 38.2 | L21: 45.9 | M21: 53.6 | N21: 56.5 | O21: 57.5 | P21: 58.5 | Q21: 61.5 | R21: 63.6 | S21: 78.5 | T21: 87.7
A22: 10 Pěčín | B22: 508 | C22: 0.2 | D22: 12.1 | E22: 17.2 | F22: 19.6 | G22: 21.2 | H22: 23.8 | I22: 25.4 | J22: 28 | K22: 31.6 | L22: 37.7 | M22: 43.8 | N22: 49.5 | O22: 50.4 | P22: 51.3 | Q22: 53.9 | R22: 55.2 | S22: 69.6 | T22: 76.2
A23: 10 Pěčín | C23: 0.1 | D23: 13.9 | E23: 20 | F23: 23 | G23: 25.1 | H23: 28.3 | I23: 30.2 | J23: 33.3 | K23: 37.9 | L23: 45.5 | M23: 53 | N23: 55.3 | O23: 56.4 | P23: 57.5 | Q23: 60.8 | R23: 62.4 | S23: 81.2 | T23: 89.2
A24: 11 Plzeň – Doudlevce | B24: 311 | C24: 0.2 | D24: 10.2 | E24: 15 | F24: 17.6 | G24: 19.2 | H24: 21.4 | I24: 22.8 | J24: 24.9 | K24: 28.6 | L24: 33 | M24: 35.3 | N24: 36.9 | O24: 38.2 | P24: 39 | Q24: 41.2 | R24: 42.6 | S24: 53.6 | T24: 60.1
A25: 11 Plzeň – Doudlevce | C25: 0.1 | D25: 11.9 | E25: 17.5 | F25: 20.7 | G25: 22.7 | H25: 25.2 | I25: 27.1 | J25: 29.7 | K25: 34.3 | L25: 39.5 | M25: 42.3 | N25: 44.3 | O25: 45.9 | P25: 47.6 | Q25: 50.3 | R25: 51.8 | S25: 66.6 | T25: 73.9
A26: 12 Praha – Hostivař | B26: 240 | C26: 0.2 | D26: 11.3 | E26: 16.5 | F26: 19.5 | G26: 21.1 | H26: 23.2 | I26: 24.7 | J26: 26.9 | K26: 30.6 | L26: 36.6 | M26: 42.5 | N26: 43.2 | O26: 43.8 | P26: 44.5 | Q26: 46.4 | R26: 46.9 | S26: 58.9 | T26: 62.5
A27: 12 Praha – Hostivař | C27: 0.1 | D27: 13.1 | E27: 19.5 | F27: 23.2 | G27: 25.3 | H27: 28.1 | I27: 30.2 | J27: 33.1 | K27: 37.9 | L27: 45.7 | M27: 52 | N27: 52.8 | O27: 53.7 | P27: 54.6 | Q27: 57.2 | R27: 58.1 | S27: 73.5 | T27: 78.9
A28: 13 Seč | B28: 540 | C28: 0.2 | D28: 12.5 | E28: 17.9 | F28: 20.6 | G28: 22.2 | H28: 24.5 | I28: 26.2 | J28: 28.4 | K28: 32.3 | L28: 38.4 | M28: 44 | N28: 45.2 | O28: 46.5 | P28: 47.8 | Q28: 51.6 | R28: 54.3 | S28: 72.6 | T28: 84.6
A29: 13 Seč | C29: 0.1 | D29: 14.4 | E29: 20.9 | F29: 24.2 | G29: 26.2 | H29: 28.8 | I29: 30.7 | J29: 33.4 | K29: 38 | L29: 45.3 | M29: 52.2 | N29: 53.7 | O29: 55.2 | P29: 56.6 | Q29: 61.1 | R29: 64.4 | S29: 85.5 | T29: 99.8
A30: 14 Tábor | B30: 441 | C30: 0.2 | D30: 11.9 | E30: 16.4 | F30: 18.4 | G30: 19.7 | H30: 21.8 | I30: 23.2 | J30: 25.1 | K30: 28.6 | L30: 32.4 | M30: 34.4 | N30: 35.9 | O30: 37.1 | P30: 37.8 | Q30: 40 | R30: 41.8 | S30: 51.6 | T30: 59.1
A31: 14 Tábor | C31: 0.1 | D31: 13.8 | E31: 19.1 | F31: 21.4 | G31: 23.2 | H31: 25.6 | I31: 27.1 | J31: 29.4 | K31: 33.5 | L31: 38 | M31: 40.4 | N31: 41.2 | O31: 42 | P31: 42.8 | Q31: 45.3 | R31: 47.1 | S31: 59 | T31: 66.9
A32: 15 Telč | B32: 526 | C32: 0.2 | D32: 10.2 | E32: 15.7 | F32: 19.1 | G32: 21.4 | H32: 24.5 | I32: 25.9 | J32: 27.8 | K32: 31 | L32: 37.7 | M32: 43.1 | N32: 43.9 | O32: 44.8 | P32: 45.6 | Q32: 48 | R32: 49.7 | S32: 61.6 | T32: 69.2
A33: 15 Telč | C33: 0.1 | D33: 11.6 | E33: 18.2 | F33: 22.2 | G33: 25.1 | H33: 28.8 | I33: 30.5 | J33: 32.9 | K33: 36.8 | L33: 44.8 | M33: 52.9 | N33: 54.7 | O33: 55.6 | P33: 56.5 | Q33: 59.1 | R33: 61.2 | S33: 72.9 | T33: 81.8
A34: 16 Bílá Třemešná | B34: 322 | C34: 0.2 | D34: 8.9 | E34: 14 | F34: 16.9 | G34: 18.6 | H34: 21.1 | I34: 22.9 | J34: 25.4 | K34: 29.7 | L34: 36.1 | M34: 41.8 | N34: 42.4 | O34: 43 | P34: 43.7 | Q34: 45.6 | R34: 46.8 | S34: 56.7 | T34: 62.1
A35: 16 Bílá Třemešná | C35: 0.1 | D35: 10.1 | E35: 16.1 | F35: 19.6 | G35: 22 | H35: 25 | I35: 27.4 | J35: 30.6 | K35: 36 | L35: 44.1 | M35: 52.2 | N35: 53.6 | O35: 54.2 | P35: 54.8 | Q35: 56.7 | R35: 58.1 | S35: 67.3 | T35: 73.3
A36: 17 Třebíč | B36: 406 | C36: 0.2 | D36: 11.9 | E36: 16.6 | F36: 19.4 | G36: 21.4 | H36: 23.9 | I36: 26.2 | J36: 28.8 | K36: 33 | L36: 33.9 | M36: 34.8 | N36: 35.6 | O36: 36.5 | P36: 37.3 | Q36: 39.9 | R36: 41.6 | S36: 54.4 | T36: 62.2
A37: 17 Třebíč | C37: 0.1 | D37: 13.8 | E37: 19.3 | F37: 22.5 | G37: 24.7 | H37: 28.1 | I37: 30.5 | J37: 33.5 | K37: 36 | L37: 37 | M37: 38.1 | N37: 39.2 | O37: 40.2 | P37: 41.3 | Q37: 44.5 | R37: 46.7 | S37: 62.4 | T37: 72.2
A38: 18 Uherské Hradiště | B38: 181 | C38: 0.2 | D38: 8.9 | E38: 13.7 | F38: 16.6 | G38: 17.9 | H38: 19.6 | I38: 21 | J38: 22.9 | K38: 26 | L38: 30.3 | M38: 32.4 | N38: 33.9 | O38: 34.7 | P38: 35.5 | Q38: 37.9 | R38: 40 | S38: 50.6 | T38: 59.2
A39: 18 Uherské Hradiště | C39: 0.1 | D39: 10.4 | E39: 16 | F39: 19.4 | G39: 20.9 | H39: 23 | I39: 24.7 | J39: 26.9 | K39: 30.5 | L39: 35.6 | M39: 37.5 | N39: 38.5 | O39: 39.4 | P39: 40.3 | Q39: 43 | R39: 45.4 | S39: 57.4 | T39: 67.4
A40: 19 Vsetín | B40: 345 | C40: 0.2 | D40: 9.4 | E40: 14 | F40: 16.7 | G40: 18.8 | H40: 21.6 | I40: 23.2 | J40: 25.7 | K40: 29.8 | L40: 36.3 | M40: 42.7 | N40: 47.6 | O40: 48.7 | P40: 49.9 | Q40: 53.3 | R40: 55.2 | S40: 73.3 | T40: 82.4
A41: 19 Vsetín | C41: 0.1 | D41: 10.7 | E41: 16 | F41: 19.2 | G41: 21.6 | H41: 24.8 | I41: 26.9 | J41: 29.7 | K41: 34.6 | L41: 42.2 | M41: 49.8 | N41: 56.2 | O41: 57.6 | P41: 59 | Q41: 63.3 | R41: 66 | S41: 87.7 | T41: 100
A42: 20 Vyškov – Brňany | B42: 255 | C42: 0.2 | D42: 9.8 | E42: 13.4 | F42: 16.2 | G42: 18.3 | H42: 21.5 | I42: 25.2 | J42: 27.5 | K42: 34.8 | L42: 37.6 | M42: 38.2 | N42: 38.7 | O42: 39.2 | P42: 39.8 | Q42: 41.4 | R42: 42.6 | S42: 50.5 | T42: 55.6
A43: 20 Vyškov – Brňany | C43: 0.1 | D43: 12.2 | E43: 16.1 | F43: 19.5 | G43: 22.1 | H43: 26.4 | I43: 31.4 | J43: 34 | K43: 42.5 | L43: 43.8 | M43: 44.4 | N43: 45 | O43: 45.6 | P43: 46.2 | Q43: 48.1 | R43: 49.3 | S43: 58.3 | T43: 64
A44: 21 Znojmo | B44: 306 | C44: 0.2 | D44: 12.1 | E44: 17.6 | F44: 20.6 | G44: 22.6 | H44: 25.4 | I44: 27.1 | J44: 29.5 | K44: 33.6 | L44: 39 | M44: 39.7 | N44: 40.4 | O44: 41.1 | P44: 41.8 | Q44: 43.9 | R44: 45 | S44: 56.8 | T44: 62.1
A45: 21 Znojmo | C45: 0.1 | D45: 14 | E45: 20.7 | F45: 24.4 | G45: 26.8 | H45: 30.1 | I45: 32.2 | J45: 35.2 | K45: 40.1 | L45: 45.5 | M45: 46.4 | N45: 47.2 | O45: 48 | P45: 48.8 | Q45: 51.3 | R45: 52.2 | S45: 66.6 | T45: 71.8
A46: 22 horské lokality | B46: nad 650 | C46: 0.2 | D46: 10.4 | E46: 14.5 | F46: 17 | G46: 19.4 | H46: 22.7 | I46: 25.7 | J46: 30 | K46: 39.7 | L46: 48.7 | M46: 57.8 | N46: 66.8 | O46: 75.8 | P46: 84.9 | Q46: 99.1 | R46: 103.7 | S46: 155.7 | T46: 178.8
A47: 22 horské lokality | C47: 0.1 | D47: 11.9 | E47: 16.7 | F47: 19.6 | G47: 22.2 | H47: 26.1 | I47: 29.5 | J47: 34.6 | K47: 45.7 | L47: 56.2 | M47: 66.6 | N47: 77 | O47: 87.5 | P47: 97.9 | Q47: 122.5 | R47: 129.6 | S47: 200.5 | T47: 235.2
